fUST/lending_fUST_20250806
["ID","MTS","AMOUNT","RATE_DAILY","PERIOD"]
[377445720,1754414908867,5000.0,0.00026348,2]
[377445721,1754414908889,5000.0,0.00026348,2]
[377445722,1754414910958,9398.85355323,0.0002,2]
[377445723,1754414914686,489.76211863,0.0002,20]
[377445724,1754414914720,4794.39622286,0.0002,20]
[377445725,1754414915143,363.70522638,0.0002,2]
[377445726,1754414915610,13083.5758371,0.0002,2]
[377445728,1754414916939,-174.27988678,0.00026258,2]
[377445730,1754414919754,19707.84206395,0.0002,2]
[377445731,1754414920049,-229.28725638,0.00026258,2]
[377445732,1754414920643,2206.39850416,0.00024257,2]
[377445733,1754414920856,7000.0,0.0002,2]
[377445734,1754414921310,302.0,0.00021,2]
[377445735,1754414921628,16691.9609274,0.0002,2]
[377445736,1754414924250,3800.0,0.00017,2]
[377445737,1754414926570,-268.63175735,0.00025995,2]
[377445739,1754414929195,-248.11532807,0.00025995,2]
[377445740,1754414930749,-161.66704392,0.00025995,2]
[377445741,1754414930787,150.0,0.00023973,2]
[377445742,1754414932624,-678.41412934,0.00025995,2]
[377445743,1754414932816,-1356.82825868,0.00025995,2]
[377445744,1754414933027,-2286.34348264,0.00025995,2]
[377445745,1754414933342,-2281.1333284,0.00026258,2]
[377445746,1754414933372,-212.94221032,0.00026347,2]
[377445747,1754414933464,-11.84892256,0.00026347,2]
[377445748,1754414933494,-275.03178335,0.00026347,2]
[377445749,1754414933526,-578.87309836,0.00026347,2]
[377445750,1754414933569,-293.2421048,0.00026347,2]
[377445751,1754414939619,-472.55016675,0.00025735,2]
[377445752,1754414939837,-472.55016675,0.00025735,2]
[377445753,1754414939859,-4054.8996665,0.00025735,2]
[377445754,1754414940247,-174.27988678,0.00026347,2]
[377445755,1754414940311,-4651.44022644,0.00026348,2]
[377445756,1754414940324,-5000.0,0.00026348,2]
[377445757,1754414940380,-5000.0,0.00026348,2]
[377445758,1754414940559,-5000.0,0.00026348,2]
[377445759,1754414943052,-300.0,0.00026347,2]
[377445760,1754414943095,-4400.0,0.00026348,2]
[377445761,1754414945310,-5000.0,0.00026348,2]
[377445762,1754414945500,-5000.0,0.00026348,2]
[377445763,1754414945651,-5000.0,0.00026348,2]
[377445764,1754414945769,-5000.0,0.00026348,2]
[377445765,1754414946580,-5000.0,0.00026348,2]
[377445766,1754414946816,-5000.0,0.00026348,2]
[377445767,1754414947119,-5000.0,0.00026348,2]
[377445768,1754414947292,-5000.0,0.00026348,2]
[377445769,1754414947521,-5000.0,0.00026348,2]
[377445770,1754414947775,-5000.0,0.00026348,2]
[377445771,1754414947896,-5000.0,0.00026348,2]
[377445772,1754414948074,-5000.0,0.00026348,2]
[377445773,1754414948221,-892.05168259,0.00026348,2]
[377445774,1754414948246,-3215.89663482,0.00026348,2]
[377445775,1754414948425,-832.1524461,0.00026348,2]
[377445776,1754414951235,3335.6951078,0.00026084,2]
[377445777,1754414951258,1664.3048922,0.00026084,2]
[377445778,1754414955058,161.66704392,0.00026347,2]
[377445779,1754414955718,190.34,0.00025453,7]
[377445780,1754414956098,190.34,0.00026075,7]
[377445781,1754414965023,452.792237,0.00026347,2]
[377445782,1754414966583,2340.55582688,0.00026348,2]
[377445783,1754414966608,2659.44417312,0.00026348,2]
[377445786,1754414982859,2340.55582688,0.00026348,2]
[377445787,1754414982881,2659.44417312,0.00026348,2]
[377445788,1754414997953,150.0,0.0002396,2]
[377445789,1754414998458,2190.55582688,0.00026348,2]
[377445790,1754414998479,2809.44417312,0.00026348,2]
[377445791,1754414998830,150.0,0.00025101,2]
[377445793,1754414999760,150.0,0.00026242,2]
[377445794,1754415014898,1890.55582688,0.00026348,2]
[377445795,1754415014921,3109.44417312,0.00026348,2]
[377445797,1754415022823,253.34819746,0.00026342,2]
[377445798,1754415026689,500.0,0.00026342,2]
[377445799,1754415027369,500.0,0.00026342,2]
[377445800,1754415028470,500.0,0.00026342,2]
[377445801,1754415029102,137.20762942,0.00026342,2]
[377445802,1754415029125,362.79237058,0.00026342,2]
[377445803,1754415029738,500.0,0.00026342,2]
[377445804,1754415030369,500.0,0.00026342,2]
[377445806,1754415031011,500.0,0.00026342,2]
[377445807,1754415031087,3137.20762942,0.00026348,2]
[377445808,1754415031111,1862.79237058,0.00026348,2]
[377445809,1754415031636,500.0,0.00026342,2]
[377445821,1754415032292,500.0,0.00026342,2]
[377445872,1754415032729,-302.31394146,0.0002635,2]
[377445875,1754415032739,-232.016,0.0002635,13]
[377445878,1754415032749,-179.31870536,0.0002635,13]
[377445880,1754415032758,-396.40087886,0.0002635,2]
[377445883,1754415032770,-803.59912114,0.0002635,2]
[377445885,1754415032779,-300.0,0.0002635,2]
[377445887,1754415032788,-300.0,0.0002635,2]
[377445889,1754415032797,-1200.0,0.0002635,2]
[377445891,1754415032808,-300.0,0.0002635,2]
[377445893,1754415032817,-300.0,0.0002635,2]
[377445895,1754415032827,-220.3946588,0.0002635,2]
[377445897,1754415032836,-608.78778909,0.00026351,2]
[377445899,1754415032845,-14673.95739293,0.00026357,2]
[377445907,1754415032914,500.0,0.00026342,2]
[377445939,1754415033209,405.653897,0.00013699,2]
[377445954,1754415033464,405.653897,0.00020187,2]
[377445960,1754415033601,557.53155746,0.00026342,2]
[377446007,1754415038635,-35326.04260707,0.00026357,2]
[377446009,1754415038645,-1380.0,0.00026357,2]
[377446011,1754415038654,-160.0,0.00026357,2]
[377446012,1754415038664,-304245.06,0.00026358,2]
[377446014,1754415038674,-200.0,0.00026358,10]
[377446017,1754415038685,-200.0,0.00026358,10]
[377446018,1754415038695,-200.0,0.00026358,10]
[377446020,1754415038706,-200.0,0.00026358,10]
[377446022,1754415038717,-200.0,0.00026358,10]
[377446024,1754415038727,-200.0,0.00026358,10]
[377446026,1754415038737,-204.2089,0.00026358,10]
[377446028,1754415038747,-25560.5318507,0.00026363,2]
[377446034,1754415038757,-500.0,0.00026373,2]
[377446036,1754415038766,-500.0,0.00026373,2]
[377446038,1754415038775,-500.0,0.00026373,2]
[377446040,1754415038785,-500.0,0.00026373,2]
[377446042,1754415038795,-500.0,0.00026373,2]
[377446044,1754415038804,-500.0,0.00026373,2]
[377446046,1754415038815,-500.0,0.00026373,2]
[377446047,1754415038824,-504.22581698,0.00026373,2]
[377446049,1754415038833,-500.0,0.00026373,2]
[377446051,1754415038842,-500.0,0.00026373,2]
[377446053,1754415038851,-500.0,0.00026373,2]
[377446055,1754415038860,-500.0,0.00026373,2]
[377446057,1754415038870,-500.0,0.00026373,2]
[377446059,1754415038879,-500.0,0.00026373,2]
[377446061,1754415038888,-500.0,0.00026373,2]
[377446063,1754415038897,-500.0,0.00026373,2]
[377446065,1754415038907,-500.9714425,0.00026373,2]
[377446067,1754415038916,-500.0,0.00026373,2]
[377446069,1754415038925,-235.79192868,0.00026373,2]
[377446071,1754415038934,-500.0,0.00026373,2]
[377446073,1754415038943,-500.0,0.00026373,2]
[377446075,1754415038953,-500.0,0.00026373,2]
[377446077,1754415038962,-500.0,0.00026373,2]
[377446079,1754415038971,-500.0,0.00026373,2]
[377446081,1754415038980,-519.17278592,0.00026373,2]
[377446083,1754415038989,-503.44358832,0.00026373,2]
[377446085,1754415038998,-500.0,0.00026373,2]
[377446087,1754415039008,-627.6142472,0.00026373,2]
[377446089,1754415039019,-383.05747136,0.00026373,2]
[377446091,1754415039028,-500.0,0.00026373,2]
[377446093,1754415039038,-500.46350979,0.00026373,2]
[377446095,1754415039048,-500.0,0.00026373,2]
[377446097,1754415039059,-331.52019357,0.00026373,2]
[377446100,1754415039068,-500.0,0.00026373,2]
[377446101,1754415039078,-473.56782225,0.00026373,2]
[377446103,1754415039087,-500.0,0.00026373,2]
[377446105,1754415039100,-500.0,0.00026373,2]
[377446107,1754415039110,-500.0,0.00026373,2]
[377446110,1754415039120,-460.42120368,0.00026373,2]
[377446112,1754415039129,-501.05503878,0.00026373,2]
[377446114,1754415039139,-500.0,0.00026373,2]
[377446116,1754415039149,-500.0,0.00026373,2]
[377446118,1754415039159,-500.0,0.00026373,2]
[377446120,1754415039167,-500.0,0.00026373,2]
[377446121,1754415039177,-506.86097359,0.00026373,2]
[377446123,1754415039188,-159.96240563,0.00026373,2]
[377446125,1754415039197,-200.0,0.00026373,2]
[377446127,1754415039207,-500.0,0.00026373,2]
[377446129,1754415039216,-500.0,0.00026373,2]
[377446131,1754415039225,-500.0,0.00026373,2]
[377446133,1754415039235,-320.63276161,0.00026373,2]
[377446135,1754415039245,-500.0,0.00026373,2]
[377446137,1754415039254,-500.0,0.00026373,2]
[377446140,1754415039264,-538.70728264,0.00026373,2]
[377446141,1754415039274,-262.22034838,0.00026373,2]
[377446143,1754415039283,-500.0,0.00026373,2]
[377446145,1754415039292,-500.0,0.00026373,2]
[377446147,1754415039301,-500.0,0.00026373,10]
[377446149,1754415039310,-2684.70047154,0.00026586,2]
[377446151,1754415039319,-500.0,0.00026647,10]
[377446153,1754415039328,-405.653897,0.00026676,2]
[377446155,1754415039337,-600.0,0.00026688,2]
[377446157,1754415039346,-386.23,0.00026688,2]
[377446159,1754415039356,-2010.40254829,0.000268,3]
[377446161,1754415039365,-25560.5318507,0.000268,2]
[377446163,1754415039374,-19223.88785355,0.0002681,3]
[377446165,1754415039383,-160.0,0.0002681,3]
[377446167,1754415039391,-231.72586818,0.0002681,3]
[377446169,1754415039401,-160.0,0.0002681,3]
[377446171,1754415039410,-215.21874788,0.0002681,3]
[377446173,1754415039419,-160.0,0.0002681,3]
[377446175,1754415039428,-160.0,0.0002681,3]
[377446177,1754415039437,-216.4206905,0.0002681,3]
[377446179,1754415039446,-160.0,0.0002681,3]
[377446181,1754415039455,-3501.36194119,0.00026847,2]
[377446183,1754415039464,-2684.70047154,0.00026915,2]
[377446186,1754415039474,-1000.0,0.00026921,2]
[377446187,1754415039483,-500.0,0.00026921,2]
[377446189,1754415039492,-507.78032824,0.00026921,2]
[377446191,1754415039501,-1004.05081134,0.00026921,2]
[377446193,1754415039510,-1000.0,0.00026921,2]
[377446195,1754415039519,-500.0,0.00026921,2]
[377446197,1754415039528,-1005.24877477,0.00026921,2]
[377446200,1754415039537,-502.83539207,0.00026921,2]
[377446202,1754415039546,-503.54167044,0.00026921,2]
[377446203,1754415039555,-237.69986304,0.00026921,2]
[377446204,1754415039566,-1000.0,0.00026921,2]
[377446205,1754415039575,-501.16152977,0.00026921,2]
[377446206,1754415039584,-1000.0,0.00026921,2]
[377446207,1754415039593,-500.0,0.00026921,2]
[377446208,1754415039603,-1000.0,0.00026921,2]
[377446209,1754415039612,-500.0,0.00026921,2]
[377446210,1754415039621,-1003.81386907,0.00026921,2]
[377446211,1754415039630,-1001.89643264,0.00026921,2]
[377446212,1754415039639,-1000.0,0.00026921,2]
[377446213,1754415039648,-1000.0,0.00026921,2]
[377446214,1754415039657,-1000.0,0.00026921,2]
[377446215,1754415039666,-1005.89293748,0.00026921,2]
[377446216,1754415039676,-501.97573748,0.00026921,2]
[377446217,1754415039685,-1000.0,0.00026921,2]
[377446218,1754415039694,-500.84356237,0.00026921,2]
[377446219,1754415039703,-500.0,0.00026921,10]
[377446220,1754415039713,-200.01,0.00027,2]
[377446221,1754415039722,-1437.374485,0.000271,2]
[377446222,1754415039731,-500.0,0.00027195,10]
[377446223,1754415039740,-2684.70047154,0.00027243,2]
[377446224,1754415039749,-1800.0,0.00027271,2]
[377446225,1754415039759,-500.0,0.00027373,2]
[377446226,1754415039769,-500.0,0.00027373,2]
[377446227,1754415039778,-500.0,0.00027373,2]
[377446228,1754415039788,-500.0,0.00027373,2]
[377446229,1754415039796,-150.0,0.00027373,2]
[377446230,1754415039806,-500.0,0.00027373,2]
[377446231,1754415039816,-500.0,0.00027373,2]
[377446232,1754415039826,-501.62666213,0.00027373,2]
[377446233,1754415039835,-500.60871059,0.00027373,2]
[377446234,1754415039844,-500.0,0.00027373,2]
[377446235,1754415039853,-500.0,0.00027373,2]
[377446236,1754415039863,-158.64214305,0.00027373,2]
[377446237,1754415039872,-500.0,0.00027373,2]
[377446239,1754415039881,-500.0,0.00027373,2]
[377446241,1754415039890,-500.0,0.00027373,2]
[377446243,1754415039899,-500.0,0.00027373,2]
[377446245,1754415039909,-500.0,0.00027373,2]
[377446247,1754415039919,-500.0,0.00027373,2]
[377446249,1754415039928,-407.27132358,0.00027373,2]
[377446251,1754415039937,-500.0,0.00027373,2]
[377446253,1754415039947,-500.0,0.00027373,2]
[377446255,1754415039956,-500.0,0.00027373,2]
[377446257,1754415039965,-500.0,0.00027373,2]
[377446259,1754415039974,-25560.5318507,0.00027377,2]
[377446261,1754415039984,-150.0,0.00027382,2]
[377446263,1754415039993,-25560.5318507,0.00027387,2]
[377446265,1754415040003,-693.46037175,0.00027387,2]
[377446268,1754415040012,-217.72414914,0.00027397,2]
[377446270,1754415040028,-460.0,0.00027397,2]
[377446272,1754415040037,-460.0,0.00027397,2]
[377446274,1754415040046,-401.30528499,0.00027397,2]
[377446276,1754415040056,-460.0,0.00027397,2]
[377446278,1754415040069,-557.31513292,0.00027397,2]
[377446280,1754415040078,-460.0,0.00027397,2]
[377446282,1754415040088,-460.0,0.00027397,2]
[377446285,1754415040100,-460.0,0.00027397,2]
[377446287,1754415040109,-571.67,0.00027397,2]
[377446289,1754415040119,-460.0,0.00027397,2]
[377446291,1754415040129,-460.0,0.00027397,2]
[377446293,1754415040139,-460.0,0.00027397,2]
[377446295,1754415040149,-460.0,0.00027397,2]
[377446297,1754415040159,-460.0,0.00027397,2]
[377446299,1754415040168,-460.0,0.00027397,2]
[377446301,1754415040178,-460.0,0.00027397,2]
[377446303,1754415040187,-460.0,0.00027397,2]
[377446305,1754415040198,-460.0,0.00027397,2]
[377446307,1754415040207,-460.0,0.00027397,2]
[377446310,1754415040217,-467.53378666,0.00027397,2]
[377446313,1754415040226,-460.0,0.00027397,2]
[377446315,1754415040237,-500.0,0.00027397,2]
[377446317,1754415040247,-460.0,0.00027397,2]
[377446319,1754415040256,-465.08567592,0.00027397,2]
[377446321,1754415040265,-460.0,0.00027397,2]
[377446323,1754415040275,-460.0,0.00027397,2]
[377446325,1754415040284,-986.09,0.00027397,2]
[377446327,1754415040294,-460.0,0.00027397,2]
[377446329,1754415040303,-460.0,0.00027397,2]
[377446331,1754415040314,-460.0,0.00027397,2]
[377446346,1754415040438,-458.84583748,0.00027397,2]
[377446348,1754415040448,-460.0,0.00027397,2]
[377446350,1754415040458,-460.0,0.00027397,2]
[377446352,1754415040467,-460.0,0.00027397,2]
[377446354,1754415040476,-460.0,0.00027397,2]
[377446356,1754415040486,-3352.64,0.00027397,2]
[377446358,1754415040495,-460.0,0.00027397,2]
[377446360,1754415040504,-460.0,0.00027397,2]
[377446362,1754415040513,-460.0,0.00027397,2]
[377446364,1754415040523,-460.0,0.00027397,2]
[377446366,1754415040532,-460.0,0.00027397,2]
[377446368,1754415040542,-460.0,0.00027397,2]
[377446370,1754415040551,-565.26,0.00027397,2]
[377446372,1754415040562,-460.0,0.00027397,2]
[377446374,1754415040572,-465.84102802,0.00027397,2]
[377446376,1754415040582,-460.0,0.00027397,2]
[377446378,1754415040592,-500.0,0.00027397,5]
[377446380,1754415040602,-460.0,0.00027397,2]
[377446382,1754415040611,-469.2621318,0.00027397,2]
[377446384,1754415040621,-460.0,0.00027397,2]
[377446386,1754415040629,-460.0,0.00027397,2]
[377446388,1754415040639,-460.0,0.00027397,2]
[377446390,1754415040648,-460.0,0.00027397,2]
[377446392,1754415040657,-460.0,0.00027397,2]
[377446394,1754415040666,-1270.03,0.00027397,2]
[377446396,1754415040676,-460.0,0.00027397,2]
[377446398,1754415040686,-460.0,0.00027397,2]
[377446400,1754415040695,-460.0,0.00027397,2]
[377446401,1754415040703,-460.0,0.00027397,2]
[377446403,1754415040712,-460.0,0.00027397,2]
[377446405,1754415040721,-460.0,0.00027397,2]
[377446408,1754415040730,-1043.48,0.00027397,2]
[377446410,1754415040742,-460.0,0.00027397,2]
[377446411,1754415040753,-460.0,0.00027397,2]
[377446414,1754415040763,-460.0,0.00027397,2]
[377446415,1754415040772,-460.0,0.00027397,2]
[377446418,1754415040782,-460.0,0.00027397,2]
[377446419,1754415040792,-412.79142189,0.00027397,2]
[377446421,1754415040802,-460.0,0.00027397,2]
[377446423,1754415040813,-365.01736245,0.00027397,2]
[377446426,1754415040823,-460.0,0.00027397,2]
[377446428,1754415040831,-460.0,0.00027397,2]
[377446431,1754415040840,-463.52940731,0.00027397,2]
[377446432,1754415040849,-460.0,0.00027397,2]
[377446435,1754415040859,-460.0,0.00027397,2]
[377446437,1754415040869,-460.0,0.00027397,2]
[377446439,1754415040878,-461.69525378,0.00027397,2]
[377446441,1754415040887,-460.0,0.00027397,2]
[377446443,1754415040896,-460.0,0.00027397,2]
[377446445,1754415040905,-460.0,0.00027397,2]
[377446447,1754415040914,-460.0,0.00027397,2]
[377446449,1754415040922,-460.0,0.00027397,2]
[377446450,1754415040931,-460.0,0.00027397,2]
[377446453,1754415040940,-460.0,0.00027397,2]
[377446454,1754415040950,-460.0,0.00027397,2]
[377446456,1754415040961,-460.0,0.00027397,2]
[377446458,1754415040970,-460.0,0.00027397,2]
[377446460,1754415040979,-460.0,0.00027397,2]
[377446463,1754415040988,-460.0,0.00027397,2]
[377446465,1754415040998,-460.0,0.00027397,2]
[377446467,1754415041006,-460.0,0.00027397,2]
[377446468,1754415041016,-460.0,0.00027397,2]
[377446471,1754415041029,-460.0,0.00027397,2]
[377446472,1754415041038,-462.96449764,0.00027397,2]
[377446474,1754415041047,-460.0,0.00027397,2]
[377446476,1754415041056,-460.0,0.00027397,2]
[377446478,1754415041068,-460.0,0.00027397,2]
[377446480,1754415041078,-460.0,0.00027397,2]
[377446482,1754415041087,-460.0,0.00027397,2]
[377446484,1754415041099,-460.0,0.00027397,2]
[377446486,1754415041108,-460.0,0.00027397,2]
[377446488,1754415041117,-460.0,0.00027397,2]
[377446490,1754415041126,-669.24,0.00027397,2]
[377446492,1754415041135,-460.0,0.00027397,2]
[377446494,1754415041144,-460.0,0.00027397,2]
[377446497,1754415041154,-460.0,0.00027397,2]
[377446498,1754415041163,-460.0,0.00027397,2]
[377446500,1754415041173,-460.0,0.00027397,2]
[377446502,1754415041184,-460.0,0.00027397,2]
[377446504,1754415041193,-460.0,0.00027397,2]
[377446507,1754415041203,-460.0,0.00027397,2]
[377446509,1754415041212,-460.0,0.00027397,2]
[377446511,1754415041222,-463.32498826,0.00027397,2]
[377446513,1754415041231,-460.0,0.00027397,2]
[377446515,1754415041240,-460.0,0.00027397,2]
[377446517,1754415041250,-463.14988833,0.00027397,2]
[377446518,1754415041260,-460.0,0.00027397,2]
[377446521,1754415041269,-460.0,0.00027397,2]
[377446522,1754415041279,-460.0,0.00027397,2]
[377446524,1754415041288,-460.0,0.00027397,2]
[377446526,1754415041297,-460.0,0.00027397,2]
[377446529,1754415041306,-460.0,0.00027397,2]
[377446531,1754415041319,-460.0,0.00027397,2]
[377446533,1754415041328,-460.0,0.00027397,2]
[377446534,1754415041337,-460.0,0.00027397,2]
[377446536,1754415041346,-460.0,0.00027397,2]
[377446538,1754415041354,-460.0,0.00027397,2]
[377446540,1754415041364,-460.0,0.00027397,2]
[377446542,1754415041372,-460.0,0.00027397,2]
[377446545,1754415041383,-460.0,0.00027397,2]
[377446547,1754415041392,-460.0,0.00027397,2]
[377446548,1754415041401,-462.43896746,0.00027397,2]
[377446551,1754415041410,-460.0,0.00027397,2]
[377446552,1754415041419,-460.0,0.00027397,2]
[377446555,1754415041428,-576.88,0.00027397,2]
[377446556,1754415041437,-661.32,0.00027397,2]
[377446558,1754415041446,-460.0,0.00027397,2]
[377446560,1754415041455,-460.0,0.00027397,2]
[377446562,1754415041464,-460.0,0.00027397,2]
[377446565,1754415041473,-460.0,0.00027397,2]
[377446567,1754415041482,-462.35767595,0.00027397,2]
[377446569,1754415041491,-461.2329548,0.00027397,2]
[377446570,1754415041500,-460.0,0.00027397,2]
[377446572,1754415041509,-460.0,0.00027397,2]
[377446575,1754415041519,-460.0,0.00027397,2]
[377446576,1754415041527,-460.0,0.00027397,2]
[377446578,1754415041536,-460.0,0.00027397,2]
[377446580,1754415041545,-460.0,0.00027397,2]
[377446582,1754415041554,-460.0,0.00027397,2]
[377446585,1754415041564,-460.0,0.00027397,2]
[377446586,1754415041573,-460.0,0.00027397,2]
[377446589,1754415041583,-461.85991844,0.00027397,2]
[377446590,1754415041593,-460.0,0.00027397,2]
[377446593,1754415041602,-846.11,0.00027397,2]
[377446595,1754415041611,-460.0,0.00027397,2]
[377446597,1754415041620,-460.0,0.00027397,2]
[377446599,1754415041629,-153.19713645,0.00027397,2]
[377446601,1754415041638,-461.66471203,0.00027397,2]
[377446603,1754415041647,-500.0,0.00027397,2]
[377446605,1754415041656,-460.0,0.00027397,2]
[377446607,1754415041666,-464.5125654,0.00027397,2]
[377446609,1754415041675,-460.0,0.00027397,2]
[377446611,1754415041684,-460.0,0.00027397,2]
[377446613,1754415041693,-460.0,0.00027397,2]
[377446615,1754415041702,-466.36446335,0.00027397,2]
[377446617,1754415041711,-468.72809324,0.00027397,2]
[377446619,1754415041720,-460.0,0.00027397,2]
[377446621,1754415041729,-464.13901776,0.00027397,2]
[377446623,1754415041739,-460.0,0.00027397,2]
[377446625,1754415041747,-460.0,0.00027397,2]
[377446627,1754415041757,-462.60196306,0.00027397,2]
[377446629,1754415041766,-461.80542507,0.00027397,2]
[377446631,1754415041774,-460.0,0.00027397,2]
[377446633,1754415041783,-461.53180392,0.00027397,2]
[377446635,1754415041793,-460.0,0.00027397,2]
[377446637,1754415041802,-460.0,0.00027397,2]
[377446639,1754415041811,-3818.35,0.00027397,2]
[377446641,1754415041821,-460.0,0.00027397,2]
[377446643,1754415041830,-460.0,0.00027397,2]
[377446644,1754415041839,-460.0,0.00027397,2]
[377446646,1754415041847,-2389.53,0.00027397,2]
[377446648,1754415041856,-460.0,0.00027397,2]
[377446651,1754415041867,-460.0,0.00027397,2]
[377446653,1754415041880,-535.36,0.00027397,2]
[377446655,1754415041889,-460.0,0.00027397,2]
[377446657,1754415041898,-460.0,0.00027397,2]
[377446659,1754415041907,-460.0,0.00027397,2]
[377446660,1754415041915,-398.63614994,0.00027397,2]
[377446662,1754415041924,-460.0,0.00027397,2]
[377446664,1754415041933,-460.0,0.00027397,2]
[377446666,1754415041942,-460.0,0.00027397,2]
[377446668,1754415041953,-56223.51,0.00027397,2]
[377446670,1754415041962,-460.0,0.00027397,2]
[377446673,1754415041972,-460.0,0.00027397,2]
[377446675,1754415041982,-460.0,0.00027397,2]
[377446676,1754415041992,-460.0,0.00027397,2]
[377446678,1754415042001,-460.0,0.00027397,2]
[377446680,1754415042011,-460.0,0.00027397,2]
[377446682,1754415042022,-460.0,0.00027397,2]
[377446685,1754415042032,-461.24897499,0.00027397,2]
[377446687,1754415042041,-460.0,0.00027397,2]
[377446689,1754415042050,-2020.1,0.00027397,2]
[377446691,1754415042060,-1687.27,0.00027397,2]
[377446693,1754415042071,-605.79007281,0.00027397,2]
[377446695,1754415042081,-460.0,0.00027397,2]
[377446697,1754415042090,-465.10012553,0.00027397,2]
[377446699,1754415042100,-460.0,0.00027397,2]
[377446701,1754415042111,-467.12078335,0.00027397,2]
[377446703,1754415042120,-460.0,0.00027397,2]
[377446705,1754415042129,-460.0,0.00027397,2]
[377446707,1754415042139,-460.0,0.00027397,2]
[377446709,1754415042147,-460.0,0.00027397,2]
[377446711,1754415042157,-463.72854906,0.00027397,2]
[377446713,1754415042166,-460.0,0.00027397,2]
[377446715,1754415042175,-469.56198199,0.00027397,2]
[377446717,1754415042184,-487.65,0.00027397,2]
[377446719,1754415042193,-462.18693587,0.00027397,2]
[377446721,1754415042202,-460.0,0.00027397,2]
[377446723,1754415042211,-501.17451571,0.00027397,2]
[377446725,1754415042220,-460.0,0.00027397,2]
[377446727,1754415042229,-460.0,0.00027397,2]
[377446729,1754415042238,-460.0,0.00027397,2]
[377446731,1754415042248,-460.0,0.00027397,2]
[377446733,1754415042257,-460.0,0.00027397,2]
[377446735,1754415042266,-460.0,0.00027397,2]
[377446737,1754415042275,-543.26173374,0.00027397,2]
[377446739,1754415042284,-460.0,0.00027397,2]
[377446741,1754415042293,-463.74181317,0.00027397,2]
[377446743,1754415042303,-460.0,0.00027397,2]
[377446745,1754415042311,-1000.0,0.00027397,2]
[377446747,1754415042321,-461.65780362,0.00027397,2]
[377446749,1754415042330,-461.57353465,0.00027397,2]
[377446751,1754415042340,-463.5211106,0.00027397,2]
[377446753,1754415042349,-460.0,0.00027397,2]
[377446755,1754415042358,-460.0,0.00027397,2]
[377446757,1754415042366,-460.0,0.00027397,2]
[377446759,1754415042376,-460.0,0.00027397,2]
[377446761,1754415042384,-460.0,0.00027397,2]
[377446763,1754415042394,-462.7244028,0.00027397,2]
[377446765,1754415042403,-460.0,0.00027397,2]
[377446767,1754415042412,-460.0,0.00027397,2]
[377446769,1754415042421,-500.0,0.00027397,2]
[377446771,1754415042430,-500.0,0.00027397,2]
[377446773,1754415042439,-460.0,0.00027397,2]
[377446775,1754415042448,-460.0,0.00027397,2]
[377446777,1754415042457,-460.0,0.00027397,2]
[377446779,1754415042466,-462.84885078,0.00027397,2]
[377446781,1754415042475,-460.0,0.00027397,2]
[377446783,1754415042485,-462.623948,0.00027397,2]
[377446785,1754415042494,-468.07933571,0.00027397,2]
[377446787,1754415042503,-460.0,0.00027397,2]
[377446789,1754415042512,-460.0,0.00027397,2]
[377446791,1754415042521,-460.0,0.00027397,2]